fUST/lending_fUST_20240910
["ID","MTS","AMOUNT","RATE_DAILY","PERIOD"]
[337653037,1725917429180,-567.56,0.00035616,14]
[337653038,1725917429216,-567.69111011,0.00035616,14]
[337653039,1725917429250,-500.0,0.00035616,14]
[337653040,1725917429284,-500.0,0.00035616,14]
[337653041,1725917429318,-513.24691996,0.00035616,14]
[337653042,1725917429352,-500.0,0.00035616,14]
[337653043,1725917429385,-500.0,0.00035616,14]
[337653044,1725917429418,-500.0,0.00035616,14]
[337653045,1725917429451,-500.0,0.00035616,14]
[337653046,1725917429485,-500.0,0.00035616,14]
[337653047,1725917429518,-500.0,0.00035616,14]
[337653048,1725917429552,-1662.14,0.00035616,14]
[337653049,1725917429586,-796.58,0.00035616,14]
[337653050,1725917429620,-500.0,0.00035616,14]
[337653051,1725917429655,-500.0,0.00035616,14]
[337653052,1725917429691,-182.516464,0.00035616,14]
[337653053,1725917429727,-1906.16,0.00035616,14]
[337653054,1725917429762,-757.81,0.00035616,14]
[337653055,1725917429795,-500.0,0.00035616,14]
[337653056,1725917429828,-500.0,0.00035616,14]
[337653057,1725917429861,-923.16,0.00035616,14]
[337653058,1725917429893,-501.26264946,0.00035616,14]
[337653059,1725917429925,-500.0,0.00035616,14]
[337653060,1725917429956,-717.2,0.00035616,14]
[337653061,1725917429988,-500.0,0.00035616,14]
[337653062,1725917430020,-917.18,0.00035616,14]
[337653063,1725917430052,-500.0,0.00035616,14]
[337653064,1725917430085,-500.0,0.00035616,14]
[337653065,1725917430117,-502.43838905,0.00035616,14]
[337653066,1725917430149,-500.0,0.00035616,14]
[337653067,1725917430184,-1076.49,0.00035616,14]
[337653068,1725917430217,-500.0,0.00035616,14]
[337653069,1725917430249,-724.08,0.00035616,14]
[337653070,1725917430287,-500.0,0.00035616,14]
[337653071,1725917430320,-896.05,0.00035616,14]
[337653072,1725917430354,-502.0581262,0.00035616,14]
[337653073,1725917430386,-500.0,0.00035616,14]
[337653074,1725917430419,-606.33,0.00035616,14]
[337653075,1725917430452,-596.45,0.00035616,14]
[337653076,1725917430485,-796.83,0.00035616,14]
[337653077,1725917430518,-615.69,0.00035616,14]
[337653078,1725917430551,-500.0,0.00035616,14]
[337653079,1725917430585,-500.0,0.00035616,14]
[337653080,1725917430619,-500.0,0.00035616,14]
[337653081,1725917430654,-502.08844306,0.00035616,14]
[337653082,1725917430688,-521.75146082,0.00035616,14]
[337653083,1725917430722,-500.0,0.00035616,14]
[337653084,1725917430756,-507.92,0.00035616,14]
[337653085,1725917430788,-500.0,0.00035616,10]
[337653086,1725917430820,-625.66,0.00035616,14]
[337653087,1725917430853,-500.0,0.00035616,14]
[337653088,1725917430885,-500.0,0.00035616,14]
[337653089,1725917430918,-526.95,0.00035616,14]
[337653090,1725917430951,-500.0,0.00035616,14]
[337653091,1725917430984,-500.0,0.00035616,14]
[337653092,1725917431015,-500.0,0.00035616,14]
[337653093,1725917431046,-504.22030287,0.00035616,14]
[337653094,1725917431077,-501.01035668,0.00035616,14]
[337653095,1725917431108,-955.42,0.00035616,14]
[337653096,1725917431140,-500.0,0.00035616,14]
[337653097,1725917431175,-500.0,0.00035616,14]
[337653098,1725917431206,-500.0,0.00035616,14]
[337653099,1725917431239,-500.0,0.00035616,14]
[337653100,1725917431275,-500.0,0.00035616,14]
[337653101,1725917431306,-500.0,0.00035616,14]
[337653102,1725917431339,-500.0,0.00035616,14]
[337653103,1725917431371,-500.0,0.00035616,14]
[337653104,1725917431403,-500.0,0.00035616,14]
[337653105,1725917431600,-1687.17,0.00035616,14]
[337653106,1725917431636,-500.0,0.00035616,14]
[337653107,1725917431671,-500.0,0.00035616,14]
[337653108,1725917431706,-544.5,0.00035616,14]
[337653109,1725917431740,-378.6515039,0.00035616,14]
[337653110,1725917431776,-500.0,0.00035616,14]
[337653117,1725917431810,-779.38,0.00035616,14]
[337653121,1725917431846,-500.0,0.00035616,14]
[337653122,1725917431880,-500.0,0.00035616,14]
[337653123,1725917431912,-500.0,0.00035616,14]
[337653126,1725917431945,-427.14022128,0.00035616,14]
[337653130,1725917431981,-2425.31,0.00035616,14]
[337653135,1725917432017,-500.0,0.00035616,14]
[337653139,1725917432050,-500.0,0.00035616,14]
[337653143,1725917432085,-1226.65,0.00035616,14]
[337653146,1725917432119,-973.09,0.00035616,14]
[337653148,1725917432152,-500.86179566,0.00035616,14]
[337653150,1725917432187,-1617.31,0.00035616,14]
[337653153,1725917432222,-500.0,0.00035616,14]
[337653154,1725917432259,-1108.89,0.00035616,14]
[337653155,1725917432293,-500.0,0.00035616,14]
[337653156,1725917432330,-595.28,0.00035616,14]
[337653157,1725917432364,-500.0,0.00035616,14]
[337653158,1725917432397,-837.74,0.00035616,14]
[337653159,1725917432431,-500.0,0.00035616,14]
[337653160,1725917432465,-500.0,0.00035616,14]
[337653161,1725917432498,-500.0,0.00035616,14]
[337653162,1725917432531,-500.0,0.00035616,14]
[337653163,1725917432569,-500.0,0.00035616,14]
[337653164,1725917432602,-500.0,0.00035616,14]
[337653165,1725917432635,-1032.1,0.00035616,14]
[337653166,1725917432669,-624.39502448,0.00035616,14]
[337653167,1725917432703,-500.0,0.00035616,14]
[337653168,1725917432738,-812.76,0.00035616,14]
[337653169,1725917432773,-500.0,0.00035616,14]
[337653170,1725917432807,-500.0,0.00035616,14]
[337653171,1725917432844,-1067.14,0.00035616,14]
[337653172,1725917432876,-500.0,0.00035616,14]
[337653173,1725917432910,-500.0,0.00035616,14]
[337653174,1725917432944,-500.0,0.00035616,14]
[337653175,1725917432977,-718.59,0.00035616,14]
[337653176,1725917433009,-500.0,0.00035616,14]
[337653177,1725917433044,-500.0,0.00035616,14]
[337653178,1725917433078,-501.44101717,0.00035616,14]
[337653179,1725917433112,-597.46422064,0.00035616,14]
[337653180,1725917433147,-500.0,0.00035616,14]
[337653181,1725917433182,-500.0,0.00035616,14]
[337653182,1725917433217,-500.0,0.00035616,14]
[337653183,1725917433250,-807.78,0.00035616,14]
[337653184,1725917433287,-504.69781228,0.00035616,14]
[337653185,1725917433324,-1208.94,0.00035616,14]
[337653186,1725917433358,-503.01378336,0.00035616,14]
[337653187,1725917433392,-500.0,0.00035616,14]
[337653188,1725917433426,-500.0,0.00035616,14]
[337653189,1725917433476,-500.0,0.00035616,14]
[337653190,1725917433516,-500.0,0.00035616,14]
[337653191,1725917433554,-500.0,0.00035616,14]
[337653192,1725917433597,-500.0,0.00035616,14]
[337653193,1725917433636,-500.98323211,0.00035616,14]
[337653194,1725917433677,-500.0,0.00035616,14]
[337653195,1725917433717,-500.0,0.00035616,14]
[337653196,1725917433757,-500.0,0.00035616,14]
[337653197,1725917433796,-500.0,0.00035616,14]
[337653198,1725917433834,-744.09,0.00035616,14]
[337653199,1725917433875,-500.0,0.00035616,14]
[337653200,1725917433918,-1385.82,0.00035616,14]
[337653201,1725917433963,-501.39097544,0.00035616,14]
[337653202,1725917434006,-502.46728596,0.00035616,14]
[337653203,1725917434048,-505.20000706,0.00035616,14]
[337653204,1725917434088,-500.0,0.00035616,14]
[337653205,1725917434126,-500.0,0.00035616,14]
[337653206,1725917434163,-2007.96,0.00035616,14]
[337653207,1725917434204,-692.15,0.00035616,14]
[337653208,1725917434244,-1145.13,0.00035616,14]
[337653209,1725917434283,-500.0,0.00035616,14]
[337653210,1725917434324,-502.16095731,0.00035616,14]
[337653211,1725917434360,-530.53411282,0.00035616,14]
[337653212,1725917434398,-501.73824365,0.00035616,14]
[337653213,1725917434445,-315.4854012,0.00035616,14]
[337653214,1725917434483,-692.06,0.00035616,14]
[337653215,1725917434520,-521.81453931,0.00035616,14]
[337653216,1725917434558,-2184.14,0.00035616,14]
[337653217,1725917434601,-500.0,0.00035616,14]
[337653218,1725917434639,-500.0,0.00035616,14]
[337653219,1725917434679,-1286.18,0.00035616,14]
[337653220,1725917434718,-4147.6,0.00035616,14]
[337653221,1725917434757,-500.0,0.00035616,14]
[337653222,1725917434794,-1848.23,0.00035616,14]
[337653223,1725917434831,-500.0,0.00035616,14]
[337653224,1725917434868,-500.0,0.00035616,14]
[337653225,1725917434904,-1427.24,0.00035616,14]
[337653226,1725917434940,-500.0,0.00035616,14]
[337653227,1725917434975,-500.0,0.00035616,14]
[337653228,1725917435008,-500.0,0.00035616,14]
[337653229,1725917435043,-500.0,0.00035616,14]
[337653230,1725917435079,-500.0,0.00035616,14]
[337653231,1725917435113,-695.38,0.00035616,14]
[337653232,1725917435150,-500.0,0.00035616,14]
[337653233,1725917435186,-500.0,0.00035616,14]
[337653234,1725917435221,-500.0,0.00035616,14]
[337653235,1725917435256,-500.0,0.00035616,14]
[337653236,1725917435291,-539.38485539,0.00035616,14]
[337653237,1725917435329,-500.0,0.00035616,14]
[337653238,1725917435364,-2237.3,0.00035616,14]
[337653239,1725917435401,-500.0,0.00035616,14]
[337653240,1725917435640,-500.0,0.00035616,14]
[337653241,1725917435676,-500.0,0.00035616,14]
[337653242,1725917435713,-500.0,0.00035616,14]
[337653243,1725917435748,-500.0,0.00035616,14]
[337653244,1725917435783,-500.0,0.00035616,14]
[337653245,1725917435816,-500.0,0.00035616,14]
[337653246,1725917435854,-500.0,0.00035616,14]
[337653247,1725917435887,-500.0,0.00035616,14]
[337653248,1725917435919,-500.0,0.00035616,14]
[337653249,1725917435951,-1386.75,0.00035616,14]
[337653250,1725917435985,-1303.77,0.00035616,14]
[337653251,1725917436017,-500.0,0.00035616,14]
[337653252,1725917436052,-500.0,0.00035616,14]
[337653253,1725917436084,-505.23180981,0.00035616,14]
[337653254,1725917436116,-577.62,0.00035616,14]
[337653255,1725917436149,-500.0,0.00035616,14]
[337653256,1725917436184,-500.0,0.00035616,14]
[337653257,1725917436218,-2217.94,0.00035616,14]
[337653258,1725917436254,-754.68,0.00035616,14]
[337653259,1725917436288,-589.5,0.00035616,14]
[337653260,1725917436323,-180.63098617,0.00035616,14]
[337653261,1725917436373,-1577.18,0.00035616,14]
[337653262,1725917436411,-500.0,0.00035616,14]
[337653263,1725917436449,-500.0,0.00035616,14]
[337653264,1725917436485,-500.0,0.00035616,14]
[337653265,1725917436521,-867.25,0.00035616,14]
[337653266,1725917436557,-500.0,0.00035616,14]
[337653267,1725917436594,-508.98,0.00035616,14]
[337653268,1725917436629,-500.0,0.00035616,14]
[337653269,1725917436665,-500.0,0.00035616,14]
[337653270,1725917436701,-500.0,0.00035616,14]
[337653271,1725917436737,-500.0,0.00035616,14]
[337653272,1725917436776,-500.0,0.00035616,14]
[337653273,1725917436815,-926.59,0.00035616,14]
[337653274,1725917436855,-500.0,0.00035616,14]
[337653275,1725917436893,-2487.04,0.00035616,14]
[337653276,1725917436928,-500.0,0.00035616,14]
[337653277,1725917436964,-500.36544117,0.00035616,14]
[337653278,1725917437001,-903.52,0.00035616,14]
[337653279,1725917437036,-698.78,0.00035616,14]
[337653280,1725917437071,-500.0,0.00035616,14]
[337653281,1725917437110,-507.88213887,0.00035616,14]
[337653282,1725917437147,-500.0,0.00035616,14]
[337653283,1725917437184,-500.0,0.00035616,14]
[337653284,1725917437220,-983.86,0.00035616,14]
[337653285,1725917437257,-500.0,0.00035616,14]
[337653286,1725917437300,-500.0,0.00035616,14]
[337653287,1725917437343,-500.0,0.00035616,14]
[337653288,1725917437381,-500.0,0.00035616,14]
[337653289,1725917437418,-500.0,0.00035616,14]
[337653290,1725917437454,-500.0,0.00035616,14]
[337653291,1725917437489,-5466.3,0.00035616,14]
[337653292,1725917437524,-500.9987486,0.00035616,14]
[337653293,1725917437559,-2077.09,0.00035616,14]
[337653294,1725917437593,-500.28680857,0.00035616,14]
[337653295,1725917437630,-910.99,0.00035616,14]
[337653296,1725917437666,-1684.99,0.00035616,14]
[337653297,1725917437703,-500.0,0.00035616,14]
[337653298,1725917437738,-500.0,0.00035616,14]
[337653301,1725917437776,-500.0,0.00035616,14]
[337653305,1725917437814,-500.0,0.00035616,14]
[337653310,1725917437853,-500.0,0.00035616,14]
[337653314,1725917437888,-500.0,0.00035616,14]
[337653318,1725917437926,-500.0,0.00035616,14]
[337653321,1725917437966,-500.0,0.00035616,14]
[337653326,1725917438001,-5104.29,0.00035616,14]
[337653329,1725917438039,-533.28,0.00035616,14]
[337653330,1725917438075,-500.0,0.00035616,14]
[337653332,1725917438109,-1381.29,0.00035616,14]
[337653333,1725917438145,-500.0,0.00035616,14]
[337653334,1725917438183,-500.0,0.00035616,14]
[337653335,1725917438217,-500.0,0.00035616,14]
[337653340,1725917438253,-500.51381378,0.00035616,14]
[337653344,1725917438287,-500.0,0.00035616,14]
[337653349,1725917438322,-500.0,0.00035616,14]
[337653353,1725917438358,-500.0,0.00035616,14]
[337653358,1725917438393,-176.81186051,0.00035616,14]
[337653363,1725917438429,-2396.84,0.00035616,14]
[337653364,1725917438464,-500.0,0.00035616,14]
[337653367,1725917438500,-500.0,0.00035616,14]
[337653369,1725917438535,-500.0,0.00035616,14]
[337653371,1725917438573,-500.0,0.00035616,14]
[337653372,1725917438611,-1711.78,0.00035616,14]
[337653374,1725917438647,-500.0,0.00035616,14]
[337653375,1725917438699,-500.0,0.00035616,14]
[337653376,1725917438739,-500.0,0.00035616,14]
[337653377,1725917438780,-2876.3,0.00035616,14]
[337653378,1725917438818,-504.75987686,0.00035616,14]
[337653379,1725917438859,-500.0,0.00035616,14]
[337653380,1725917438897,-2032.16,0.00035616,14]
[337653381,1725917438935,-500.0,0.00035616,14]
[337653382,1725917438973,-500.0,0.00035616,14]
[337653383,1725917439011,-500.0,0.00035616,14]
[337653384,1725917439046,-2118.12,0.00035616,14]
[337653385,1725917439088,-500.0,0.00035616,14]
[337653386,1725917439124,-500.0,0.00035616,14]
[337653387,1725917439161,-1022.99,0.00035616,14]
[337653388,1725917439199,-500.0,0.00035616,14]
[337653389,1725917439237,-500.0,0.00035616,14]
[337653390,1725917439273,-500.0,0.00035616,14]
[337653391,1725917439309,-500.0,0.00035616,14]
[337653392,1725917439347,-500.0,0.00035616,14]
[337653393,1725917439384,-500.0,0.00035616,14]
[337653394,1725917439421,-500.0,0.00035616,14]
[337653395,1725917439457,-500.0,0.00035616,14]
[337653396,1725917439714,-521.22,0.00035616,14]
[337653398,1725917439754,-502.93046143,0.00035616,14]
[337653399,1725917439793,-1631.8,0.00035616,14]
[337653402,1725917439833,-500.0,0.00035616,14]
[337653404,1725917439870,-502.12219496,0.00035616,14]
[337653405,1725917439909,-500.0,0.00035616,14]
[337653406,1725917439947,-10042.4,0.00035616,14]
[337653408,1725917439984,-1124.27,0.00035616,14]
[337653410,1725917440023,-500.0,0.00035616,14]
[337653411,1725917440059,-628.71,0.00035616,14]
[337653413,1725917440098,-2210.56,0.00035616,14]
[337653415,1725917440136,-333.68941006,0.00035616,14]
[337653416,1725917440173,-500.0,0.00035616,14]
[337653418,1725917440213,-500.0,0.00035616,14]
[337653419,1725917440253,-500.0,0.00035616,14]
[337653420,1725917440291,-2019.71,0.00035616,14]
[337653421,1725917440327,-500.0,0.00035616,14]
[337653422,1725917440362,-56168.07,0.00035616,14]
[337653423,1725917440398,-10.61521799,0.00035616,14]
[337653431,1725917442803,-2155.66478201,0.00035616,14]
[337653433,1725917442840,-500.0,0.00035616,14]
[337653436,1725917442873,-508.68,0.00035616,14]
[337653440,1725917442906,-500.0,0.00035616,14]
[337653452,1725917442940,-500.0,0.00035616,14]
[337653464,1725917442974,-500.0,0.00035616,14]
[337653482,1725917443220,-501.01367125,0.00035616,14]
[337653483,1725917443258,-4174.52,0.00035616,14]
[337653484,1725917443294,-1496.29,0.00035616,14]
[337653485,1725917443328,-500.0,0.00035616,14]
[337653487,1725917443364,-695.88,0.00035616,14]
[337653492,1725917443398,-890.7,0.00035616,14]
[337653495,1725917443431,-500.0,0.00035616,14]
[337653497,1725917443464,-625.01165026,0.00035616,14]
[337653498,1725917443496,-500.0,0.00035616,14]
[337653499,1725917443528,-500.0,0.00035616,14]
[337653500,1725917443561,-500.0,0.00035616,14]
[337653501,1725917443595,-1086.8,0.00035616,14]
[337653502,1725917443628,-524.29,0.00035616,14]
[337653503,1725917443664,-999.0,0.00035616,14]
[337653504,1725917443699,-500.0,0.00035616,14]
[337653505,1725917443732,-500.0,0.00035616,14]
[337653506,1725917443765,-500.0,0.00035616,14]
[337653507,1725917443799,-500.0,0.00035616,14]
[337653508,1725917443833,-602.85,0.00035616,14]
[337653509,1725917443869,-5289.18,0.00035616,14]
[337653510,1725917443903,-500.0,0.00035616,14]
[337653511,1725917443937,-500.0,0.00035616,14]
[337653512,1725917443972,-500.0,0.00035616,14]
[337653513,1725917444006,-500.0,0.00035616,14]
[337653514,1725917444041,-500.0,0.00035616,14]
[337653515,1725917444075,-501.81241,0.00035616,14]
[337653516,1725917444111,-1254.72,0.00035616,14]
[337653517,1725917444144,-500.0,0.00035616,14]
[337653518,1725917444182,-500.0,0.00035616,14]
[337653519,1725917444217,-500.0,0.00035616,14]
[337653520,1725917444253,-500.0,0.00035616,14]
[337653521,1725917444287,-819.58,0.00035616,14]
[337653522,1725917444321,-2068.56,0.00035616,14]
[337653523,1725917444356,-500.0,0.00035616,14]
[337653524,1725917444390,-500.0,0.00035616,14]
[337653525,1725917444424,-500.0,0.00035616,14]
[337653526,1725917444459,-500.0,0.00035616,14]
[337653527,1725917444495,-1688.15,0.00035616,14]
[337653528,1725917444530,-500.0,0.00035616,14]
[337653529,1725917444567,-575.75,0.00035616,14]
[337653530,1725917444605,-500.0,0.00035616,14]
[337653531,1725917444640,-500.0,0.00035616,14]
[337653532,1725917444677,-500.0,0.00035616,14]
[337653533,1725917444713,-500.0,0.00035616,14]
[337653534,1725917444748,-500.0,0.00035616,14]
[337653535,1725917444784,-501.08798804,0.00035616,14]
[337653536,1725917444820,-3470.01,0.00035616,14]
[337653537,1725917444856,-707.11,0.00035616,14]
[337653538,1725917444891,-2748.52,0.00035616,14]
[337653539,1725917444925,-500.0,0.00035616,14]
[337653540,1725917444958,-500.0,0.00035616,14]
[337653541,1725917444991,-500.87711517,0.00035616,14]
[337653542,1725917445026,-2017.46,0.00035616,14]
[337653543,1725917445059,-500.0,0.00035616,14]
[337653544,1725917445091,-1030.55,0.00035616,14]
[337653545,1725917445124,-1818.59,0.00035616,14]
[337653546,1725917445158,-500.0,0.00035616,14]
[337653547,1725917445190,-4284.04,0.00035616,14]
[337653548,1725917445224,-919.94,0.00035616,14]
[337653549,1725917445258,-543.05,0.00035616,14]
[337653550,1725917445291,-534.35,0.00035616,14]
[337653551,1725917445325,-500.0,0.00035616,14]
[337653552,1725917445365,-8606.67,0.00035616,14]
[337653553,1725917445399,-500.0,0.00035616,14]
[337653554,1725917445432,-771.28,0.00035616,14]
[337653555,1725917445466,-7668.42,0.00035616,14]
[337653556,1725917445500,-500.0,0.00035616,14]
[337653557,1725917445535,-541.02,0.00035616,14]
[337653558,1725917445570,-1565.33,0.00035616,14]
[337653559,1725917445605,-500.0,0.00035616,14]
[337653560,1725917445638,-500.0,0.00035616,14]
[337653561,1725917445672,-1000.81,0.00035616,14]
[337653562,1725917445707,-1533.31,0.00035616,14]
[337653563,1725917445741,-500.0,0.00035616,14]
[337653566,1725917445776,-1622.17,0.00035616,14]
[337653573,1725917445811,-500.0,0.00035616,14]
[337653579,1725917445847,-500.0,0.00035616,14]
[337653580,1725917445880,-500.0,0.00035616,14]
[337653583,1725917445916,-2481.45,0.00035616,14]
[337653584,1725917445950,-500.0,0.00035616,14]
[337653585,1725917445983,-5583.06,0.00035616,14]
[337653587,1725917446016,-500.44967905,0.00035616,14]
[337653590,1725917446050,-500.0,0.00035616,14]
[337653592,1725917446085,-6482.54,0.00035616,14]
[337653596,1725917446119,-500.0,0.00035616,14]
[337653600,1725917446151,-500.0,0.00035616,14]
[337653603,1725917446186,-1314.29,0.00035616,14]
[337653605,1725917446220,-532.579088,0.00035616,14]
[337653607,1725917446256,-6482.54,0.00035616,14]
[337653609,1725917446292,-6482.54,0.00035616,14]
[337653612,1725917446325,-500.0,0.00035616,14]
[337653617,1725917446360,-6482.54,0.00035616,14]
[337653619,1725917446395,-335.27202658,0.00035616,14]
[337653620,1725917446429,-500.48690562,0.00035616,14]
[337653621,1725917446462,-6482.54,0.00035616,14]
[337653622,1725917446498,-6482.54,0.00035616,14]
[337653623,1725917446532,-6482.54,0.00035616,14]
[337653624,1725917446566,-6482.54,0.00035616,14]
[337653625,1725917446600,-2011.46,0.00035616,14]
[337653626,1725917446635,-6482.54,0.00035616,14]
[337653627,1725917446671,-6482.54,0.00035616,14]
[337653628,1725917446705,-500.92139125,0.00035616,14]
[337653629,1725917446742,-6482.54,0.00035616,14]
[337653630,1725917446780,-6482.54,0.00035616,14]
[337653631,1725917446817,-6482.54,0.00035616,14]
[337653632,1725917447023,-6482.54,0.00035616,14]
[337653633,1725917447062,-6482.54,0.00035616,14]
[337653634,1725917447100,-532.579092,0.00035616,14]
[337653635,1725917447137,-6482.54,0.00035616,14]
[337653636,1725917447176,-6482.54,0.00035616,14]
[337653637,1725917447212,-1831.65,0.00035616,14]
[337653638,1725917447249,-6482.54,0.00035616,14]
[337653639,1725917447286,-6482.54,0.00035616,14]
[337653640,1725917447323,-6482.54,0.00035616,14]
[337653641,1725917447360,-6482.54,0.00035616,14]
[337653642,1725917447395,-6482.54,0.00035616,14]
[337653643,1725917447429,-1050.83,0.00035616,14]
[337653644,1725917447462,-500.0,0.00035616,14]
[337653645,1725917447497,-6482.54,0.00035616,14]
[337653646,1725917447533,-6482.63752268,0.00035616,14]
[337653647,1725917447569,-508.52349011,0.00035616,14]
[337653648,1725917447609,-5032.03,0.00035616,14]
[337653649,1725917447647,-500.0,0.00035616,14]
[337653650,1725917447684,-500.0,0.00035616,14]
[337653651,1725917447721,-1093.82,0.00035616,14]
[337653652,1725917447757,-500.0,0.00035616,14]
[337653653,1725917447793,-859.21,0.00035616,14]
[337653654,1725917447830,-500.0,0.00035616,14]
[337653655,1725917447866,-500.0,0.00035616,14]
[337653656,1725917447900,-500.0,0.00035616,14]
[337653657,1725917447935,-500.0,0.00035616,14]
[337653658,1725917447971,-500.0,0.00035616,14]
[337653659,1725917448006,-500.0,0.00035616,14]
[337653660,1725917448040,-500.0,0.00035616,14]
[337653661,1725917448073,-500.0,0.00035616,14]
[337653662,1725917448107,-500.0,0.00035616,14]
[337653663,1725917448141,-500.0,0.00035616,14]
[337653664,1725917448177,-500.0,0.00035616,14]
[337653665,1725917448212,-370.84989202,0.00035616,14]
[337653666,1725917448248,-500.0,0.00035616,14]
[337653667,1725917448286,-386.93385966,0.00035616,14]
[337653668,1725917448319,-694.16,0.00035616,14]
[337653669,1725917448353,-786.94,0.00035616,14]
[337653670,1725917448388,-61377.96,0.00035616,14]
[337653671,1725917448421,-500.0,0.00035616,14]
[337653672,1725917448454,-47576.09,0.00035616,14]
[337653673,1725917448488,-500.0,0.00035616,14]
[337653674,1725917448522,-1317.42,0.00035616,14]
[337653675,1725917448556,-906.69,0.00035616,14]
[337653676,1725917448591,-500.0,0.00035616,14]
[337653677,1725917448630,-462.17,0.000357,14]
[337653678,1725917448663,-1811.52,0.000357,30]
[337653679,1725917448696,-600.0,0.0003589,14]
[337653680,1725917448731,-501.9617986,0.0003589,14]
[337653681,1725917448765,-766.18,0.0003589,14]
[337653682,1725917448798,-500.0,0.0003589,14]
[337653683,1725917448832,-500.0,0.0003589,14]
[337653684,1725917448871,-500.0,0.0003589,14]
[337653685,1725917448904,-500.0,0.0003589,14]
[337653686,1725917448937,-500.0,0.0003589,14]
[337653687,1725917448972,-500.0,0.0003589,14]
[337653688,1725917449006,-500.0,0.0003589,14]
[337653689,1725917449040,-500.0,0.0003589,14]
[337653690,1725917449073,-500.0,0.0003589,14]
[337653691,1725917449112,-500.0,0.0003589,14]
[337653692,1725917449145,-500.0,0.0003589,14]
[337653693,1725917449183,-500.0,0.0003589,14]
[337653694,1725917449218,-502.12412513,0.0003589,14]
[337653695,1725917449252,-500.0,0.0003589,14]
[337653696,1725917449289,-500.0,0.0003589,14]
[337653697,1725917449323,-500.0,0.0003589,14]
[337653698,1725917449357,-500.0,0.0003589,14]
[337653699,1725917449391,-500.0,0.0003589,14]
[337653700,1725917449425,-500.0,0.0003589,14]
[337653701,1725917449459,-500.0,0.0003589,14]
[337653702,1725917449492,-358.4850641,0.0003589,14]
[337653703,1725917449526,-500.0,0.0003589,14]
[337653704,1725917449560,-500.0,0.0003589,14]
[337653705,1725917449596,-500.0,0.0003589,14]
[337653706,1725917449633,-500.0,0.0003589,14]
[337653707,1725917449668,-500.0,0.0003589,14]
[337653708,1725917449705,-594.78,0.0003589,14]
[337653709,1725917449740,-313.0,0.0003589,14]
[337653710,1725917449775,-500.0,0.0003589,14]
[337653711,1725917449811,-500.0,0.0003589,14]
[337653712,1725917449846,-500.0,0.0003589,14]
[337653713,1725917449883,-500.0,0.0003589,14]
[337653714,1725917449918,-500.0,0.0003589,14]
[337653715,1725917449953,-533.92,0.0003589,14]
[337653716,1725917449987,-500.0,0.0003589,14]
[337653717,1725917450021,-705.83,0.0003589,14]
[337653718,1725917450057,-1190.33,0.0003589,14]
[337653719,1725917450091,-500.0,0.0003589,14]
[337653720,1725917450124,-500.0,0.0003589,14]
[337653721,1725917450157,-500.0,0.0003589,14]
[337653722,1725917450191,-500.0,0.0003589,14]
[337653723,1725917450225,-500.0,0.0003589,14]